fUST/lending_fUST_20240202
["ID","MTS","AMOUNT","RATE_DAILY","PERIOD"]
[313174680,1706883576833,-587.69361893,0.00022994,2]
[313174681,1706883613504,10000.0,0.00029,30]
[313174682,1706883642493,-1698.8854666,0.00021993,2]
[313174683,1706883642515,-3000.0,0.00021994,2]
[313174684,1706883642537,-609.08979656,0.00022894,2]
[313174685,1706883642559,-160.50111058,0.00022895,2]
[313174686,1706883642582,-292.23786885,0.00022897,2]
[313174687,1706883642603,-155.23228967,0.00022991,2]
[313174688,1706883642623,-618.15983227,0.00022992,2]
[313174689,1706883642643,-155.0356582,0.00022992,2]
[313174690,1706883642664,-3492.24028975,0.00022992,2]
[313174691,1706883642687,-29105.61768752,0.00022994,2]
[313174694,1706883711599,-562.60505917,0.00021991,2]
[313174695,1706883711621,-155.0356582,0.00021992,2]
[313174696,1706883711643,-836.35928263,0.00021992,2]
[313174712,1706884129015,10000.0,0.0002,10]
[313174746,1706884231952,-2981.46,0.00020029,2]
[313174769,1706884237569,151.03473799,0.00028381,30]
[313174801,1706884241307,-7290.6900177,0.00020029,2]
[313174802,1706884241316,-155.23228967,0.00020218,2]
[313174803,1706884241327,-260.80238899,0.00020218,2]
[313174804,1706884241336,-29014.6440109,0.00020219,2]
[313174805,1706884241346,-199.56931104,0.00020928,2]
[313174806,1706884241357,-3389.0619817,0.00020929,2]
[313174847,1706884243948,-1137.19491836,0.00020929,2]
[313174848,1706884244006,-3484.31014718,0.00020929,2]
[313174849,1706884244016,-2040.82,0.0002102,3]
[313174850,1706884244025,-1700.69,0.0002102,3]
[313174851,1706884244034,-618.15983227,0.00021028,2]
[313174852,1706884244145,-905.29332772,0.00021029,2]
[313174853,1706884244154,-4255.0011642,0.00021031,2]
[313174854,1706884244164,-24900.0,0.00021031,2]
[313174855,1706884244173,-977.283044,0.00021197,2]
[313174856,1706884244183,-311.193866,0.00021617,2]
[313174857,1706884244192,-250.0,0.0002182,2]
[313174858,1706884244201,-1581.70409938,0.00022516,2]
[313174859,1706884244210,-310.00620025,0.00022517,2]
[313174860,1706884244220,-1348.91383597,0.00022922,2]
[313174861,1706884244229,-2088.61407986,0.00022995,2]
[313174862,1706884244238,-312.87729749,0.00023,2]
[313174863,1706884244247,-155.0356582,0.00023394,4]
[313174864,1706884244257,-334.61490544,0.00024033,2]
[313174865,1706884244265,-562.02259525,0.0002441,2]
[313174866,1706884244275,-155.66012431,0.00024411,2]
[313174867,1706884244283,-200.0,0.00024768,7]
[313174868,1706884244293,-3749.63049928,0.00024995,2]
[313174869,1706884244302,-1501.35381004,0.00024995,5]
[313174870,1706884244311,-1995.81205402,0.00025993,2]
[313174871,1706884244324,-629.04215025,0.00025993,2]
[313174872,1706884244333,-338.69663044,0.00025993,2]
[313174873,1706884244342,-500.0,0.00025994,2]
[313174874,1706884244352,-280.25684936,0.00026,2]
[313174875,1706884244361,-440.71412763,0.00026843,2]
[313174876,1706884244371,-310.00309668,0.00027,2]
[313174877,1706884244380,-280.0,0.00027245,15]
[313174878,1706884244389,-180.40893595,0.00027296,2]
[313174879,1706884244398,-39602.92241458,0.00027297,2]
[313174880,1706884244407,-1296.43634916,0.0002739,2]
[313174881,1706884244418,-619.80442401,0.0002739,2]
[313174882,1706884244428,-157.07740353,0.00027392,2]
[313174883,1706884244437,-1697.65420362,0.00027392,2]
[313174884,1706884244445,-4820.73788709,0.00027393,2]
[313174885,1706884244463,-2106.9014739,0.00027393,2]
[313174886,1706884244478,-5216.89568329,0.00027393,2]
[313174887,1706884244488,-1244.16147081,0.00027393,2]
[313174888,1706884244498,-166.94158022,0.00027393,2]
[313174889,1706884244508,-18930.40431998,0.00027393,2]
[313174890,1706884244518,-1743.62109759,0.00027393,2]
[313174891,1706884244529,-243.52267023,0.00027393,2]
[313174892,1706884244539,-589.27783595,0.00027393,2]
[313174893,1706884244549,-172.12068283,0.00027393,2]
[313174894,1706884244559,-155.15070594,0.00027394,2]
[313174895,1706884244569,-19892.62116688,0.00027394,2]
[313174896,1706884244579,-261.50125071,0.00027395,2]
[313174897,1706884244590,-181.26836622,0.00027395,2]
[313174898,1706884244599,-209.93923754,0.00027395,2]
[313174899,1706884244609,-694.71835688,0.00027395,2]
[313174900,1706884244619,-167.27020705,0.00027395,2]
[313174901,1706884244629,-175.45847318,0.00027395,2]
[313174902,1706884244639,-155.21084825,0.00027395,2]
[313174903,1706884244649,-1774.94151371,0.00027396,2]
[313174904,1706884244659,-397.89932914,0.00027396,2]
[313174905,1706884244668,-500.0,0.00027397,2]
[313174906,1706884244678,-500.0,0.00027397,2]
[313174907,1706884244688,-500.0,0.00027397,2]
[313174908,1706884244697,-155.0,0.00027397,2]
[313174909,1706884244708,-500.0,0.00027397,2]
[313174910,1706884244718,-500.0,0.00027397,2]
[313174911,1706884244729,-1000.0,0.00027397,2]
[313174912,1706884244739,-500.0,0.00027397,2]
[313174913,1706884244749,-500.0,0.00027397,2]
[313174914,1706884244758,-500.0,0.00027397,2]
[313174915,1706884244769,-500.0,0.00027397,2]
[313174916,1706884244779,-500.0,0.00027397,2]
[313174917,1706884244788,-500.0,0.00027397,2]
[313174918,1706884244800,-500.0,0.00027397,2]
[313174919,1706884244810,-500.0,0.00027397,2]
[313174920,1706884244819,-500.0,0.00027397,2]
[313174921,1706884244830,-500.0,0.00027397,2]
[313174922,1706884244839,-235.65836293,0.00027397,2]
[313174923,1706884244848,-500.0,0.00027397,2]
[313174924,1706884244858,-500.0,0.00027397,2]
[313174925,1706884244867,-500.0,0.00027397,2]
[313174926,1706884244877,-500.0,0.00027397,2]
[313174927,1706884244886,-500.0,0.00027397,2]
[313174928,1706884244895,-503.79007863,0.00027397,2]
[313174929,1706884244905,-532.49556175,0.00027397,2]
[313174930,1706884244916,-500.0,0.00027397,2]
[313174931,1706884244925,-500.0,0.00027397,2]
[313174932,1706884244934,-500.0,0.00027397,2]
[313174933,1706884244944,-500.0,0.00027397,2]
[313174934,1706884244954,-500.0,0.00027397,2]
[313174935,1706884244964,-500.0,0.00027397,2]
[313174936,1706884244975,-500.0,0.00027397,2]
[313174937,1706884244985,-500.0,0.00027397,2]
[313174938,1706884244995,-500.0,0.00027397,2]
[313174939,1706884245005,-500.0,0.00027397,2]
[313174940,1706884245014,-500.0,0.00027397,2]
[313174941,1706884245024,-500.0,0.00027397,2]
[313174942,1706884245034,-500.0,0.00027397,2]
[313174943,1706884245044,-500.0,0.00027397,2]
[313174944,1706884245053,-500.0,0.00027397,2]
[313174945,1706884245062,-500.0,0.00027397,2]
[313174946,1706884245071,-500.0,0.00027397,2]
[313174947,1706884245081,-500.0,0.00027397,2]
[313174948,1706884245090,-500.0,0.00027397,2]
[313174949,1706884245099,-500.0,0.00027397,2]
[313174950,1706884245108,-500.0,0.00027397,2]
[313174951,1706884245117,-500.0,0.00027397,2]
[313174952,1706884245126,-500.0,0.00027397,2]
[313174953,1706884245135,-500.0,0.00027397,2]
[313174954,1706884245146,-500.0,0.00027397,2]
[313174955,1706884245155,-500.0,0.00027397,2]
[313174956,1706884245165,-500.0,0.00027397,2]
[313174957,1706884245174,-500.0,0.00027397,2]
[313174958,1706884245185,-500.0,0.00027397,2]
[313174959,1706884245194,-750.46,0.00027397,2]
[313174960,1706884245204,-500.0,0.00027397,2]
[313174961,1706884245213,-5302.31,0.00027397,2]
[313174962,1706884245224,-500.0,0.00027397,2]
[313174963,1706884245234,-500.0,0.00027397,2]
[313174964,1706884245243,-500.0,0.00027397,2]
[313174965,1706884245253,-500.0,0.00027397,2]
[313174966,1706884245262,-500.0,0.00027397,2]
[313174967,1706884245272,-500.0,0.00027397,2]
[313174968,1706884245281,-500.0,0.00027397,2]
[313174969,1706884245291,-500.0,0.00027397,2]
[313174970,1706884245301,-1099.61,0.00027397,2]
[313174971,1706884245310,-500.0,0.00027397,2]
[313174972,1706884245320,-151.0,0.00027397,2]
[313174973,1706884245333,-500.0,0.00027397,2]
[313174974,1706884245342,-500.0,0.00027397,2]
[313174975,1706884245351,-356.75743312,0.00027397,2]
[313174976,1706884245361,-500.0,0.00027397,2]
[313174978,1706884245371,-596.14,0.00027397,2]
[313174980,1706884245380,-500.0,0.00027397,2]
[313174982,1706884245390,-500.0,0.00027397,2]
[313174984,1706884245399,-263.64006513,0.00027397,2]
[313174985,1706884245410,-500.0,0.00027397,2]
[313174986,1706884245421,-151.0,0.00027397,2]
[313174987,1706884245432,-640.66,0.00027397,2]
[313174988,1706884245443,-3529.09,0.00027397,2]
[313174989,1706884245452,-500.0,0.00027397,2]
[313174990,1706884245461,-500.0,0.00027397,2]
[313174991,1706884245471,-500.0,0.00027397,2]
[313174992,1706884245480,-500.0,0.00027397,2]
[313174993,1706884245489,-500.0,0.00027397,2]
[313174994,1706884245498,-500.0,0.00027397,2]
[313174995,1706884245507,-859.26,0.00027397,2]
[313174996,1706884245517,-500.0,0.00027397,2]
[313174997,1706884245526,-500.0,0.00027397,2]
[313174998,1706884245535,-500.0,0.00027397,2]
[313174999,1706884245544,-1290.76,0.00027397,2]
[313175000,1706884245553,-500.0,0.00027397,2]
[313175001,1706884245563,-500.0,0.00027397,2]
[313175002,1706884245572,-224.73913167,0.00027397,2]
[313175003,1706884245581,-4995.72,0.00027397,2]
[313175004,1706884245590,-1140.56,0.00027397,2]
[313175005,1706884245599,-500.0,0.00027397,2]
[313175006,1706884245608,-500.0,0.00027397,2]
[313175007,1706884245618,-500.07163114,0.00027397,2]
[313175008,1706884245627,-1375.41,0.00027397,2]
[313175009,1706884245636,-500.0,0.00027397,2]
[313175010,1706884245646,-505.53,0.00027397,2]
[313175011,1706884245655,-500.0,0.00027397,2]
[313175012,1706884245665,-500.0,0.00027397,2]
[313175013,1706884245674,-625.75,0.00027397,2]
[313175014,1706884245683,-577.75,0.00027397,2]
[313175015,1706884245693,-500.0,0.00027397,2]
[313175016,1706884245702,-7406.49,0.00027397,2]
[313175017,1706884245712,-165.99896596,0.00027397,2]
[313175018,1706884245723,-500.0,0.00027397,2]
[313175019,1706884245733,-500.0,0.00027397,2]
[313175020,1706884245741,-500.0,0.00027397,2]
[313175021,1706884245751,-500.0,0.00027397,2]
[313175022,1706884245761,-500.0,0.00027397,2]
[313175023,1706884245770,-500.0,0.00027397,2]
[313175024,1706884245781,-500.0,0.00027397,2]
[313175025,1706884245790,-155.0,0.00027397,2]
[313175026,1706884245799,-536.24,0.00027397,2]
[313175028,1706884245808,-500.0,0.00027397,2]
[313175029,1706884245818,-500.0,0.00027397,2]
[313175030,1706884245827,-500.0,0.00027397,2]
[313175031,1706884245836,-500.0,0.00027397,2]
[313175032,1706884245846,-500.0,0.00027397,2]
[313175033,1706884245855,-1075.86,0.00027397,2]
[313175034,1706884245871,-515.0867077,0.00027397,2]
[313175035,1706884245881,-500.0,0.00027397,2]
[313175036,1706884245890,-8925.47738029,0.00027499,2]
[313175037,1706884245900,-8786.62298369,0.000275,3]
[313175038,1706884245909,-8953.11743583,0.000275,7]
[313175039,1706884245918,-151.0,0.000275,2]
[313175040,1706884245927,-151.0,0.000275,2]
[313175041,1706884245936,-1963.65792771,0.00027571,2]
[313175042,1706884245945,-1015.34231243,0.00027669,2]
[313175043,1706884245954,-322.74688247,0.00027669,2]
[313175044,1706884245963,-360.61258325,0.00027669,2]
[313175045,1706884245973,-330.79052518,0.00027669,2]
[313175046,1706884245983,-157.70207894,0.00027669,2]
[313175047,1706884245995,-155.33405321,0.0002767,2]
[313175048,1706884246005,-500.0,0.00027671,2]
[313175049,1706884246015,-500.0,0.00027671,2]
[313175050,1706884246024,-1000.0,0.00027671,2]
[313175051,1706884246033,-451.05,0.00027671,2]
[313175052,1706884246043,-265.33849375,0.00027671,2]
[313175053,1706884246052,-506.29394566,0.00027671,2]
[313175054,1706884246063,-500.0,0.00027671,2]
[313175055,1706884246073,-500.0,0.00027671,2]
[313175056,1706884246083,-500.0,0.00027671,2]
[313175057,1706884246092,-500.0,0.00027671,2]
[313175058,1706884246102,-500.0,0.00027671,2]
[313175059,1706884246111,-500.0,0.00027671,2]
[313175060,1706884246121,-155.164049,0.00027671,2]
[313175061,1706884246131,-301.65,0.00027671,2]
[313175062,1706884246140,-489.31,0.00027671,2]
[313175063,1706884246149,-438.66,0.00027671,2]
[313175064,1706884246160,-151.0,0.00027671,2]
[313175065,1706884246169,-151.0,0.00027671,2]
[313175066,1706884246178,-397.72,0.00027671,2]
[313175067,1706884246188,-514.69671884,0.00027671,2]
[313175068,1706884246198,-500.0,0.00027671,2]
[313175069,1706884246207,-500.0,0.00027671,2]
[313175070,1706884246218,-500.0,0.00027671,2]
[313175071,1706884246228,-750.46,0.00027671,2]
[313175072,1706884246237,-500.0,0.00027671,2]
[313175073,1706884246247,-5302.31,0.00027671,2]
[313175074,1706884246256,-500.0,0.00027671,2]
[313175075,1706884246266,-500.0,0.00027671,2]
[313175076,1706884246276,-500.0,0.00027671,2]
[313175077,1706884246285,-500.0,0.00027671,2]
[313175078,1706884246296,-500.0,0.00027671,2]
[313175079,1706884246306,-1099.61,0.00027671,2]
[313175080,1706884246320,-500.0,0.00027671,2]
[313175081,1706884246329,-151.0,0.00027671,2]
[313175082,1706884246339,-500.0,0.00027671,2]
[313175083,1706884246348,-500.0,0.00027671,2]
[313175084,1706884246358,-500.0,0.00027671,2]
[313175085,1706884246368,-151.0,0.00027671,2]
[313175086,1706884246377,-640.66,0.00027671,2]
[313175087,1706884246388,-3529.09,0.00027671,2]
[313175088,1706884246399,-500.0,0.00027671,2]
[313175089,1706884246409,-500.0,0.00027671,2]
[313175090,1706884246418,-500.0,0.00027671,2]
[313175091,1706884246427,-859.26,0.00027671,2]
[313175092,1706884246436,-1290.76,0.00027671,2]
[313175093,1706884246446,-500.0,0.00027671,2]
[313175094,1706884246455,-4995.72,0.00027671,2]
[313175095,1706884246465,-1140.56,0.00027671,2]
[313175096,1706884246474,-500.0,0.00027671,2]
[313175097,1706884246485,-1375.41,0.00027671,2]
[313175098,1706884246494,-505.53,0.00027671,2]
[313175099,1706884246504,-500.0,0.00027671,2]
[313175100,1706884246513,-625.75,0.00027671,2]
[313175101,1706884246523,-577.75,0.00027671,2]
[313175102,1706884246619,-500.0,0.00027671,2]
[313175103,1706884246629,-7406.49,0.00027671,2]
[313175104,1706884246639,-500.0,0.00027671,2]
[313175105,1706884246648,-500.0,0.00027671,2]
[313175106,1706884246658,-500.0,0.00027671,2]
[313175107,1706884246668,-500.0,0.00027671,2]
[313175108,1706884246677,-536.24,0.00027671,2]
[313175109,1706884246687,-500.0,0.00027671,2]
[313175110,1706884246696,-500.0,0.00027671,2]
[313175111,1706884246706,-513.74,0.00027671,2]
[313175112,1706884246716,-500.0,0.00027671,2]
[313175113,1706884246726,-1075.86,0.00027671,2]
[313175114,1706884246734,-525.41155046,0.00027671,2]
[313175115,1706884246743,-200.0,0.000279,4]
[313175116,1706884246753,-537.32141926,0.00027943,2]
[313175117,1706884246762,-426.66199522,0.00027943,2]
[313175118,1706884246772,-164.76988286,0.00027943,2]
[313175119,1706884246782,-173.76333142,0.00027943,2]
[313175120,1706884246791,-500.0,0.00027945,2]
[313175121,1706884246802,-500.0,0.00027945,2]
[313175122,1706884246812,-1000.0,0.00027945,2]
[313175123,1706884246822,-151.0,0.00027945,2]
[313175124,1706884246831,-500.0,0.00027945,2]
[313175125,1706884246840,-620.48698616,0.00027945,2]
[313175126,1706884246850,-500.0,0.00027945,2]
[313175127,1706884246860,-184.75907803,0.00027945,2]
[313175128,1706884246869,-500.0,0.00027945,2]
[313175129,1706884246879,-300.79425996,0.00027945,2]
[313175130,1706884246888,-151.0,0.00027945,2]
[313175131,1706884246898,-151.0,0.00027945,2]
[313175132,1706884246907,-500.0,0.00027945,2]
[313175133,1706884246917,-500.0,0.00027945,2]
[313175134,1706884246926,-750.46,0.00027945,2]
[313175135,1706884246935,-500.0,0.00027945,2]
[313175136,1706884246945,-5302.31,0.00027945,2]
[313175137,1706884246954,-500.0,0.00027945,2]
[313175138,1706884246963,-500.0,0.00027945,2]
[313175139,1706884246974,-545.06,0.00027945,2]
[313175140,1706884246983,-500.0,0.00027945,2]
[313175141,1706884246992,-1099.61,0.00027945,2]
[313175142,1706884247001,-356.89,0.00027945,2]
[313175143,1706884247012,-3529.09,0.00027945,2]
[313175144,1706884247021,-640.66,0.00027945,2]
[313175145,1706884247030,-500.0,0.00027945,2]
[313175146,1706884247039,-500.0,0.00027945,2]
[313175147,1706884247049,-500.0,0.00027945,2]
[313175148,1706884247058,-859.26,0.00027945,2]
[313175149,1706884247067,-1290.76,0.00027945,2]
[313175150,1706884247077,-582.15,0.00027945,2]
[313175151,1706884247086,-4995.72,0.00027945,2]
[313175152,1706884247096,-1140.56,0.00027945,2]
[313175153,1706884247105,-1375.41,0.00027945,2]
[313175155,1706884247114,-505.53,0.00027945,2]
[313175156,1706884247123,-625.75,0.00027945,2]
[313175157,1706884247132,-577.75,0.00027945,2]
[313175158,1706884247141,-500.0,0.00027945,2]
[313175159,1706884247150,-7406.49,0.00027945,2]
[313175160,1706884247159,-456.13,0.00027945,2]
[313175161,1706884247169,-500.0,0.00027945,2]
[313175162,1706884247178,-536.24,0.00027945,2]
[313175163,1706884247187,-500.0,0.00027945,2]
[313175164,1706884247196,-1075.86,0.00027945,2]
[313175165,1706884247206,-151.0,0.00027999,2]
[313175166,1706884247215,-151.0,0.00027999,2]
[313175167,1706884247225,-161.79593455,0.00027999,2]
[313175168,1706884247235,-363.37777883,0.00027999,2]
[313175169,1706884247244,-370.28471994,0.00027999,2]
[313175170,1706884247254,-500.0,0.00027999,2]
[313175171,1706884247263,-500.0,0.00027999,2]
[313175172,1706884247273,-500.0,0.00027999,2]
[313175173,1706884247282,-500.0,0.00027999,2]
[313175174,1706884247292,-500.0,0.00027999,2]
[313175175,1706884247301,-500.0,0.00027999,2]
[313175176,1706884247311,-295.12651823,0.00027999,2]
[313175177,1706884247321,-500.0,0.00027999,2]
[313175178,1706884247333,-500.0,0.00027999,2]
[313175179,1706884247342,-500.0,0.00027999,2]
[313175180,1706884247352,-488.57619317,0.00028,3]
[313175181,1706884247362,-162759.2066676,0.00028,20]
[313175182,1706884247371,-2748.63452637,0.00028,2]
[313175198,1706884369549,-407.71010212,0.00022029,2]
[313175199,1706884369571,-322.06127261,0.00022029,2]
[313175200,1706884369594,-200.0,0.0002203,7]
[313175201,1706884369615,-225.22862527,0.00024233,7]
[313175207,1706884443724,-37028.48161745,0.00023137,2]
[313175208,1706884443747,-17965.68116388,0.00023138,2]
[313175209,1706884443768,-304.83721867,0.00024232,2]
[313175214,1706884592863,-905.29332772,0.00024228,2]
[313175215,1706884592886,-322.06127261,0.00024229,2]
[313175216,1706884592908,-212.4169632,0.00024229,2]
[313175217,1706884592931,-76.22843647,0.0002423,2]
[313175224,1706884727155,-35784.0,0.00023138,2]
[313175229,1706884793284,-260.80238899,0.00023136,2]
[313175230,1706884793306,-155.03720893,0.00023137,2]
[313175231,1706884793333,-104.18814809,0.00023138,2]
[313175232,1706884793355,-1919.97225399,0.00023138,2]
[313175242,1706884859272,-212.4169632,0.00023137,2]
[313175243,1706884859293,-97.5830368,0.00023138,2]
[313175257,1706884926744,-310.0,0.00023137,2]
[313175291,1706884996185,-9188.0,0.00023037,2]
[313175299,1706885065252,-651.3516216,0.00023034,2]
[313175300,1706885065274,-500.0,0.00023034,2]
[313175301,1706885065294,-155.0356582,0.00023034,2]
[313175302,1706885065315,-295.45050683,0.00023035,2]
[313175303,1706885065339,-2042.80747063,0.00023035,2]
[313175304,1706885065364,-689.35318607,0.00023036,2]
[313175305,1706885065384,-1922.84753431,0.00023037,2]
[313175306,1706885065408,-12.06127261,0.00023137,2]
[313175307,1706885065429,-71.05878907,0.00023138,2]
[313175308,1706885065452,-23571.03396068,0.00024138,2]
[313175312,1706885130749,-155.00155002,0.00024017,2]
[313175313,1706885130771,-155.0356582,0.00024136,4]
[313175315,1706885130792,-1280.96279178,0.00024138,2]
[313175318,1706885264018,-407.71010212,0.00024012,2]
[313175319,1706885264039,-1244.61449288,0.00024013,2]
[313175320,1706885264058,-256.675405,0.00024089,2]
[313175377,1706885432138,-155.0341075,0.00024086,2]
[313175379,1706885432149,-5084.31962208,0.00024087,2]
[313175427,1706885438160,-1033.04808937,0.00024087,2]
[313175429,1706885438171,-65.38586761,0.00024089,2]
[313175430,1706885438180,-189.0197261,0.0002409,2]
[313175431,1706885438190,-48.00324754,0.00024138,2]
[313175432,1706885438201,-155.0356582,0.00024654,4]
[313175434,1706885438210,-407.71010212,0.00025293,2]
[313175435,1706885438219,-250.0,0.00025294,2]
[313175438,1706885438229,-174.9771623,0.00025479,2]
[313175439,1706885438238,-3316.81015064,0.00025599,2]
[313175765,1706885441278,-143.45432036,0.00025599,2]
[313175767,1706885441288,-3854.8264069,0.00025841,2]
[313175769,1706885441297,-155.23228967,0.00026392,2]
[313175771,1706885441306,-3306.98884826,0.00027119,2]
[313175773,1706885441315,-1000.0,0.00027344,3]
[313175775,1706885441325,-1232.36,0.00027385,3]
[313175777,1706885441334,-1221.21,0.00027385,3]
[313175779,1706885441343,-1906.72,0.00027385,3]
[313175781,1706885441353,-1588.93,0.00027385,3]
[313175783,1706885441361,-294.49174756,0.00027393,2]
[313175785,1706885441370,-1340.76115237,0.00027393,2]
[313175787,1706885441379,-904.32079102,0.00027393,2]
[313175789,1706885441388,-5741.90465664,0.00027393,2]
[313175791,1706885441401,-1401.49993163,0.00027393,2]
[313175794,1706885441412,-7048.42619148,0.00027393,2]
[313175796,1706885441422,-260.52968929,0.00027393,2]
[313175798,1706885441431,-310.22248546,0.00027393,2]
[313175800,1706885441440,-65.3334116,0.00027393,2]
[313175803,1706885441452,-1931.86050824,0.00027393,2]
[313175805,1706885441461,-688.82432757,0.00027393,2]
[313175807,1706885441470,-2041.75712479,0.00027393,2]
[313175808,1706885441479,-500.0,0.00027393,2]
[313175810,1706885441489,-295.25491079,0.00027393,2]
[313175813,1706885441499,-494.9489016,0.00027393,2]
[313175815,1706885441508,-155.0356582,0.00027393,2]
[313175816,1706885441517,-1243.70844874,0.00027393,2]
[313175819,1706885441528,-11982.3446807,0.00027394,2]
[313175821,1706885441539,-6948.05963928,0.00027394,2]
[313175823,1706885441548,-1017.03372915,0.00027395,2]
[313175825,1706885441559,-1199.66846624,0.00027395,2]
[313175827,1706885441568,-1698.26983511,0.00027395,2]
[313175829,1706885441577,-213.76447974,0.00027395,2]
[313175831,1706885441585,-1743.62109759,0.00027395,2]
[313175833,1706885441594,-261.40845485,0.00027395,2]
[313175847,1706885441716,-161.28090304,0.00027395,2]
[313175849,1706885441730,-608.8922524,0.00027395,2]
[313175851,1706885441739,-1512.18464966,0.00027395,2]
[313175854,1706885441750,-3346.82931867,0.00027395,2]
[313175855,1706885441759,-309.98450155,0.00027395,2]
[313175857,1706885441768,-18481.43005983,0.00027395,2]
[313175860,1706885441779,-1581.15759983,0.00027395,2]
[313175862,1706885441789,-181.26836622,0.00027395,2]
[313175864,1706885441798,-879.52625151,0.00027395,2]
[313175866,1706885441808,-5216.01545379,0.00027395,2]
[313175868,1706885441818,-1589.83788378,0.00027395,2]
[313175870,1706885441827,-159.01858397,0.00027395,2]
[313175872,1706885441837,-262.76233732,0.00027395,2]
[313175874,1706885441846,-1268.83572051,0.00027395,2]
[313175875,1706885441855,-440.48251379,0.00027395,2]
[313175877,1706885441864,-7873.02243596,0.00027396,2]
[313175880,1706885441875,-500.0,0.00027397,2]
[313175882,1706885441885,-500.0,0.00027397,2]
[313175883,1706885441895,-500.0,0.00027397,2]
[313175885,1706885441905,-500.0,0.00027397,2]
[313175887,1706885441914,-500.0,0.00027397,2]
[313175889,1706885441923,-513.4267534,0.00027397,2]
[313175891,1706885441934,-155.0,0.00027397,2]
[313175893,1706885441944,-323.44904625,0.00027397,2]
[313175895,1706885441953,-500.0,0.00027397,2]
[313175897,1706885441962,-529.43423216,0.00027397,2]
[313175899,1706885441971,-431.29414339,0.00027397,2]
[313175901,1706885441982,-500.0,0.00027397,2]
[313175904,1706885442005,-220.03198858,0.00027397,2]
[313175906,1706885442014,-554.28759638,0.00027397,2]
[313175908,1706885442024,-500.0,0.00027397,2]
[313175910,1706885442034,-500.0,0.00027397,2]
[313175911,1706885442044,-308.52584193,0.00027397,2]
[313175913,1706885442054,-500.0,0.00027397,2]
[313175915,1706885442064,-568.37,0.00027397,2]
[313175918,1706885442075,-500.0,0.00027397,2]
[313175920,1706885442086,-500.0,0.00027397,2]
[313175921,1706885442096,-500.0,0.00027397,2]
[313175924,1706885442107,-500.0,0.00027397,2]
[313175926,1706885442117,-500.0,0.00027397,2]
[313175927,1706885442127,-500.0,0.00027397,2]
[313175930,1706885442137,-500.0,0.00027397,2]
[313175932,1706885442148,-500.0,0.00027397,2]
[313175933,1706885442160,-500.0,0.00027397,2]
[313175935,1706885442169,-500.0,0.00027397,2]
[313175938,1706885442179,-500.0,0.00027397,2]
[313175940,1706885442189,-500.0,0.00027397,2]
[313175942,1706885442198,-500.0,0.00027397,2]
[313175944,1706885442207,-500.0,0.00027397,2]
[313175946,1706885442216,-500.0,0.00027397,2]
[313175948,1706885442224,-500.0,0.00027397,2]
[313175950,1706885442234,-500.0,0.00027397,2]
[313175951,1706885442243,-500.0,0.00027397,2]
[313175953,1706885442252,-500.0,0.00027397,2]
[313175955,1706885442261,-500.0,0.00027397,2]
[313175957,1706885442270,-500.0,0.00027397,2]
[313175959,1706885442279,-255.95577201,0.00027397,2]
[313175962,1706885442292,-392.22422799,0.00027397,2]
[313175964,1706885442300,-500.0,0.00027397,2]
[313175966,1706885442309,-500.0,0.00027397,2]
[313175968,1706885442320,-500.0,0.00027397,2]
[313175970,1706885442329,-500.0,0.00027397,2]
[313175972,1706885442339,-558.40158265,0.00027397,2]
[313175974,1706885442348,-500.0,0.00027397,2]
[313175976,1706885442357,-560.58,0.00027397,2]